fUSD/lending_fUSD_20251002
["ID","MTS","AMOUNT","RATE_DAILY","PERIOD"]
[388826638,1759396248597,-500.0,0.00021917,2]
[388826639,1759396248609,-527.25011232,0.00021917,2]
[388826640,1759396248619,-500.0,0.00021917,2]
[388826641,1759396248631,-500.0,0.00021917,2]
[388826642,1759396248641,-645.26413846,0.00021917,2]
[388826643,1759396248652,-500.0,0.00021917,2]
[388826644,1759396248663,-1791.7,0.00021917,2]
[388826645,1759396248674,-500.0,0.00021917,2]
[388826646,1759396248685,-3909.18,0.00021917,2]
[388826647,1759396248696,-500.0,0.00021917,2]
[388826648,1759396248706,-500.0,0.00021917,2]
[388826649,1759396248717,-774.06,0.00021917,2]
[388826650,1759396248727,-1658.48,0.00021917,2]
[388826651,1759396248738,-500.0,0.00021917,2]
[388826652,1759396248750,-707.75,0.00021917,2]
[388826653,1759396248760,-500.5643084,0.00021917,2]
[388826654,1759396248771,-2482.47,0.00021917,2]
[388826655,1759396248782,-1952.8,0.00021917,2]
[388826656,1759396248793,-501.43825339,0.00021917,2]
[388826657,1759396248804,-500.0,0.00021917,2]
[388826658,1759396248815,-418.37302714,0.00021917,2]
[388826659,1759396248826,-500.0,0.00021917,2]
[388826660,1759396248836,-2164.86,0.00021917,2]
[388826661,1759396248847,-500.0,0.00021917,2]
[388826662,1759396248858,-404.42571191,0.00021917,2]
[388826663,1759396248869,-579.78,0.00021917,2]
[388826664,1759396248880,-1452.07,0.00021917,2]
[388826666,1759396249719,-500.0,0.00021917,2]
[388826667,1759396249760,-500.0,0.00021917,2]
[388826668,1759396249788,-1225.38,0.00021917,2]
[388826669,1759396249813,-500.0,0.00021917,2]
[388826670,1759396249823,-500.0,0.00021917,2]
[388826671,1759396249834,-3030.09,0.00021917,2]
[388826672,1759396249843,-500.0,0.00021917,2]
[388826673,1759396249853,-500.0,0.00021917,2]
[388826674,1759396249862,-1461.99,0.00021917,2]
[388826675,1759396249871,-1390.83,0.00021917,2]
[388826676,1759396249880,-500.0,0.00021917,2]
[388826677,1759396249889,-500.0,0.00021917,2]
[388826678,1759396249900,-500.0,0.00021917,2]
[388826679,1759396249909,-532.878419,0.00021917,2]
[388826680,1759396249918,-500.0,0.00021917,2]
[388826681,1759396249928,-500.0,0.00021917,2]
[388826682,1759396249937,-1704.95,0.00021917,2]
[388826683,1759396249947,-500.0,0.00021917,2]
[388826684,1759396249957,-500.0,0.00021917,2]
[388826685,1759396249967,-500.0,0.00021917,2]
[388826686,1759396249977,-1547.39,0.00021917,2]
[388826687,1759396249987,-500.0,0.00021917,2]
[388826688,1759396249997,-500.0,0.00021917,2]
[388826689,1759396250006,-500.0,0.00021917,2]
[388826690,1759396250015,-500.0,0.00021917,2]
[388826691,1759396250025,-204.257211,0.00021917,2]
[388826692,1759396250034,-1585.87,0.00021917,2]
[388826693,1759396250043,-500.0,0.00021917,2]
[388826694,1759396250052,-1910.08,0.00021917,2]
[388826695,1759396250061,-545.19768868,0.00021917,2]
[388826696,1759396250070,-500.0,0.00021917,2]
[388826697,1759396250080,-500.55555195,0.00021917,2]
[388826698,1759396250089,-517.01,0.00021917,2]
[388826699,1759396250099,-500.0,0.00021917,2]
[388826700,1759396250107,-500.0,0.00021917,2]
[388826701,1759396250117,-500.0,0.00021917,2]
[388826702,1759396250126,-500.0,0.00021917,2]
[388826703,1759396250136,-500.0,0.00021917,2]
[388826704,1759396250145,-500.0,0.00021917,2]
[388826705,1759396250154,-500.0,0.00021917,2]
[388826706,1759396250164,-2295.04,0.00021917,2]
[388826707,1759396250173,-500.0,0.00021917,2]
[388826708,1759396250182,-500.0,0.00021917,2]
[388826709,1759396250191,-500.0,0.00021917,2]
[388826710,1759396250201,-500.0,0.00021917,2]
[388826711,1759396250210,-500.0,0.00021917,2]
[388826712,1759396250219,-423.76483116,0.00021917,2]
[388826713,1759396250228,-500.0,0.00021917,2]
[388826714,1759396250237,-500.0,0.00021917,2]
[388826715,1759396250246,-5200.669943,0.00021917,2]
[388826716,1759396250255,-500.0,0.00021917,2]
[388826717,1759396250265,-554.45194677,0.00021917,2]
[388826718,1759396250274,-1946.53,0.00021917,2]
[388826719,1759396250283,-635.17,0.00021917,2]
[388826720,1759396250292,-500.0,0.00021917,2]
[388826721,1759396250301,-554.89654499,0.00021917,2]
[388826722,1759396250310,-565.54,0.00021917,2]
[388826723,1759396250319,-500.0,0.00021917,2]
[388826724,1759396250328,-1071.32,0.00021917,2]
[388826725,1759396250337,-593.27,0.00021917,2]
[388826726,1759396250346,-513.46,0.00021917,2]
[388826727,1759396250355,-1980.25,0.00021917,2]
[388826728,1759396250366,-500.0,0.00021917,2]
[388826729,1759396250378,-500.0,0.00021917,2]
[388826730,1759396250387,-1469.07690254,0.00021917,2]
[388826731,1759396250420,-80.99309746,0.00021917,2]
[388826732,1759396250430,-5586.54356,0.00021917,2]
[388826733,1759396250439,-500.0,0.00021917,2]
[388826734,1759396250450,-500.0,0.00021917,2]
[388826735,1759396250459,-500.0,0.00021917,2]
[388826736,1759396250468,-500.0,0.00021917,2]
[388826737,1759396250478,-500.0,0.00021917,2]
[388826738,1759396250487,-1546.93,0.00021917,2]
[388826739,1759396250496,-500.0,0.00021917,2]
[388826740,1759396250506,-530.72657441,0.00021917,2]
[388826741,1759396250515,-500.0,0.00021917,2]
[388826742,1759396250524,-500.0,0.00021917,2]
[388826743,1759396250534,-500.0,0.00021917,2]
[388826744,1759396250543,-500.0,0.00021917,2]
[388826745,1759396250552,-500.0,0.00021917,2]
[388826746,1759396250561,-500.0,0.00021917,2]
[388826747,1759396250570,-500.0,0.00021917,2]
[388826748,1759396250579,-502.23753872,0.00021917,2]
[388826749,1759396250588,-500.0,0.00021917,2]
[388826750,1759396250597,-500.4807914,0.00021917,2]
[388826751,1759396250606,-2022.76,0.00021917,2]
[388826752,1759396250615,-500.0,0.00021917,2]
[388826753,1759396250624,-1850.1,0.00021917,2]
[388826754,1759396250633,-500.0,0.00021917,2]
[388826755,1759396250643,-500.0,0.00021917,2]
[388826756,1759396250651,-500.0,0.00021917,2]
[388826757,1759396250661,-506.34479674,0.00021917,2]
[388826758,1759396250671,-500.66270154,0.00021917,2]
[388826759,1759396250680,-504.5803511,0.00021917,2]
[388826760,1759396250690,-1027.77,0.00021917,2]
[388826761,1759396250699,-500.0,0.00021917,2]
[388826762,1759396250708,-500.0,0.00021917,2]
[388826763,1759396250717,-414.73374919,0.00021917,2]
[388826764,1759396250726,-527.03,0.00021917,2]
[388826765,1759396250735,-506.47780866,0.00021917,2]
[388826766,1759396250744,-500.37982856,0.00021917,2]
[388826767,1759396250753,-1392.62,0.00021917,2]
[388826768,1759396250763,-759.3,0.00021917,2]
[388826769,1759396250772,-122.4855481,0.00021917,2]
[388826770,1759396250786,-377.5144519,0.00021917,2]
[388826771,1759396250795,-502.16832535,0.00021917,2]
[388826772,1759396250804,-500.0,0.00021917,2]
[388826773,1759396250813,-500.0,0.00021917,2]
[388826774,1759396250823,-2007.18,0.00021917,2]
[388826775,1759396250832,-6136.166925,0.00021917,2]
[388826776,1759396250841,-500.0,0.00021917,2]
[388826777,1759396250851,-500.0,0.00021917,2]
[388826778,1759396250860,-667.01,0.00021917,2]
[388826779,1759396250869,-500.0,0.00021917,2]
[388826780,1759396250878,-500.0,0.00021917,2]
[388826781,1759396250887,-514.17718957,0.00021917,2]
[388826782,1759396250897,-503.50078025,0.00021917,2]
[388826783,1759396250906,-3170.75,0.00021917,2]
[388826784,1759396250915,-500.0,0.00021917,2]
[388826785,1759396250926,-500.0,0.00021917,2]
[388826786,1759396250935,-500.84490399,0.00021917,2]
[388826787,1759396250944,-2627.97,0.00021917,2]
[388826788,1759396250953,-500.0,0.00021917,2]
[388826789,1759396250962,-1631.63,0.00021917,2]
[388826790,1759396250972,-1770.51,0.00021917,2]
[388826791,1759396250981,-263.370786,0.00021917,2]
[388826792,1759396250991,-500.0,0.00021917,2]
[388826793,1759396251000,-500.0,0.00021917,2]
[388826794,1759396251009,-500.0,0.00021917,2]
[388826795,1759396251018,-535.61425443,0.00021917,2]
[388826796,1759396251027,-505.27921123,0.00021917,2]
[388826797,1759396251036,-501.73430483,0.00021917,2]
[388826798,1759396251045,-500.0,0.00021917,2]
[388826799,1759396251054,-500.0,0.00021917,2]
[388826800,1759396251063,-880.84,0.00021917,2]
[388826801,1759396251072,-567.13,0.00021917,2]
[388826802,1759396251082,-500.0,0.00021917,2]
[388826803,1759396251091,-2257.85,0.00021917,2]
[388826804,1759396251100,-500.0,0.00021917,2]
[388826805,1759396251109,-500.0,0.00021917,2]
[388826806,1759396251118,-500.0,0.00021917,2]
[388826807,1759396251127,-335.12,0.00021917,2]
[388826808,1759396251136,-500.0,0.00021917,2]
[388826809,1759396251145,-410.59975293,0.00021917,2]
[388826810,1759396251154,-500.0,0.00021917,2]
[388826811,1759396251163,-347.15025437,0.00021917,2]
[388826812,1759396251174,-500.0,0.00021917,2]
[388826813,1759396251183,-1654.21,0.00021917,2]
[388826814,1759396251192,-500.0,0.00021917,2]
[388826815,1759396251201,-500.0,0.00021917,2]
[388826816,1759396251210,-513.56986831,0.00021917,2]
[388826817,1759396251220,-500.0,0.00021917,2]
[388826818,1759396251228,-778.07,0.00021917,2]
[388826819,1759396251238,-508.06,0.00021917,2]
[388826820,1759396251247,-500.0,0.00021917,2]
[388826821,1759396251256,-500.0,0.00021917,2]
[388826822,1759396251266,-406.6266939,0.00021917,2]
[388826823,1759396251276,-500.0,0.00021917,2]
[388826824,1759396251285,-500.0,0.00021917,2]
[388826825,1759396251294,-505.37952799,0.00021917,2]
[388826826,1759396251303,-500.0,0.00021917,2]
[388826827,1759396251314,-406.74976291,0.00021917,2]
[388826828,1759396251324,-500.0,0.00021917,2]
[388826829,1759396251334,-500.0,0.00021917,2]
[388826830,1759396251342,-1198.93,0.00021917,2]
[388826831,1759396251352,-500.0,0.00021917,2]
[388826832,1759396251362,-502.15946371,0.00021917,2]
[388826833,1759396251377,-538.57,0.00021917,2]
[388826834,1759396251386,-500.0,0.00021917,2]
[388826835,1759396251395,-30.27695512,0.00021917,2]
[388826836,1759396251432,-469.72304488,0.00021917,2]
[388826837,1759396251442,-500.0,0.00021917,2]
[388826838,1759396251457,-2212.25,0.00021917,2]
[388826839,1759396251466,-1968.63,0.00021917,2]
[388826840,1759396251475,-2243.06,0.00021917,2]
[388826841,1759396251485,-568.99,0.00021917,2]
[388826842,1759396251495,-502.40847696,0.00021917,2]
[388826843,1759396251504,-151.0,0.00021917,2]
[388826844,1759396251513,-369.55187129,0.00021917,2]
[388826845,1759396251523,-500.0,0.00021917,2]
[388826846,1759396251532,-500.0,0.00021917,2]
[388826847,1759396251542,-500.0,0.00021917,2]
[388826848,1759396251551,-500.0,0.00021917,2]
[388826849,1759396251561,-500.0,0.00021917,2]
[388826850,1759396251570,-509.3126058,0.00021917,2]
[388826851,1759396251579,-500.0,0.00021917,2]
[388826852,1759396251588,-1030.63,0.00021917,2]
[388826853,1759396251597,-817.55,0.00021917,2]
[388826854,1759396251607,-506.46,0.00021917,2]
[388826855,1759396251617,-500.0,0.00021917,2]
[388826856,1759396251626,-500.0,0.00021917,2]
[388826857,1759396251635,-521.15311901,0.00021917,2]
[388826858,1759396251644,-2148.31,0.00021917,2]
[388826859,1759396251653,-500.0,0.00021917,2]
[388826860,1759396251662,-500.0,0.00021917,2]
[388826861,1759396251671,-500.0,0.00021917,2]
[388826862,1759396251680,-500.0,0.00021917,2]
[388826863,1759396251690,-2375.97,0.00021917,2]
[388826864,1759396251699,-500.0,0.00021917,2]
[388826865,1759396251708,-2560.19,0.00021917,2]
[388826866,1759396251718,-1630.42,0.00021917,2]
[388826867,1759396251727,-500.0,0.00021917,2]
[388826868,1759396251738,-1562.48,0.00021917,2]
[388826869,1759396251747,-534.02462383,0.00021917,2]
[388826870,1759396251756,-414.63383295,0.00021917,2]
[388826871,1759396251766,-500.0,0.00021917,2]
[388826872,1759396251775,-500.0,0.00021917,2]
[388826873,1759396251785,-1201.52,0.00021917,2]
[388826874,1759396251795,-3398.07,0.00021917,2]
[388826875,1759396251804,-500.0,0.00021917,2]
[388826876,1759396251814,-500.0,0.00021917,2]
[388826877,1759396251824,-510.24,0.00021917,2]
[388826878,1759396251835,-409.66752591,0.00021917,2]
[388826879,1759396251844,-500.0,0.00021917,2]
[388826880,1759396251853,-500.0,0.00021917,2]
[388826881,1759396251862,-500.0,0.00021917,2]
[388826882,1759396251871,-975.26,0.00021917,2]
[388826883,1759396251880,-500.0,0.00021917,2]
[388826884,1759396251890,-500.0,0.00021917,2]
[388826885,1759396251899,-500.0,0.00021917,2]
[388826886,1759396251909,-500.0,0.00021917,2]
[388826887,1759396251918,-732.73,0.00021917,2]
[388826888,1759396251927,-500.0,0.00021917,2]
[388826889,1759396251937,-5712.67,0.00021917,2]
[388826890,1759396251946,-500.0,0.00021917,2]
[388826891,1759396251957,-500.0,0.00021917,2]
[388826892,1759396251967,-415.34109512,0.00021917,2]
[388826893,1759396251976,-584.84,0.00021917,2]
[388826894,1759396251986,-170.04654168,0.00021917,2]
[388826895,1759396251995,-796.35,0.00021917,2]
[388826896,1759396252005,-501.1298814,0.00021917,2]
[388826897,1759396252015,-356.65302431,0.00021917,2]
[388826898,1759396252024,-5182.53,0.00021917,2]
[388826899,1759396252033,-151.0,0.00021917,2]
[388826900,1759396252042,-501.29051018,0.00021917,2]
[388826901,1759396252052,-614.94998429,0.00021917,2]
[388826902,1759396252063,-411.99578625,0.00021917,2]
[388826903,1759396252072,-500.0,0.00021917,2]
[388826904,1759396252081,-500.9111659,0.00021917,2]
[388826905,1759396252092,-500.0,0.00021917,2]
[388826906,1759396252102,-500.0,0.00021917,2]
[388826907,1759396252112,-151.0,0.00021917,2]
[388826908,1759396252123,-500.0,0.00021917,2]
[388826909,1759396252132,-500.0,0.00021917,2]
[388826910,1759396252142,-577.18248555,0.00021917,2]
[388826911,1759396252152,-500.0,0.00021917,2]
[388826912,1759396252161,-2770.51,0.00021917,2]
[388826913,1759396252171,-500.0,0.00021917,2]
[388826914,1759396252180,-1069.55,0.00021917,2]
[388826915,1759396252189,-505.59223125,0.00021917,2]
[388826916,1759396252198,-666.61,0.00021917,2]
[388826917,1759396252208,-500.0,0.00021917,2]
[388826918,1759396252217,-500.0,0.00021917,2]
[388826919,1759396252226,-501.73711015,0.00021917,2]
[388826920,1759396252236,-2371.72,0.00021917,2]
[388826921,1759396252246,-500.0,0.00021917,2]
[388826922,1759396252256,-151.0,0.00021917,2]
[388826923,1759396252265,-151.0,0.00021917,2]
[388826924,1759396252274,-151.0,0.00021917,2]
[388826925,1759396252283,-151.0,0.00021917,2]
[388826926,1759396252292,-151.0,0.00021917,2]
[388826927,1759396252302,-151.0,0.00021917,2]
[388826928,1759396252312,-500.0,0.00021917,2]
[388826929,1759396252322,-151.0,0.00021917,2]
[388826930,1759396252331,-151.0,0.00021917,2]
[388826931,1759396252340,-2356.9825,0.00021917,2]
[388826932,1759396252350,-151.0,0.00021917,2]
[388826933,1759396252360,-216.536957,0.00021917,2]
[388826934,1759396252372,-1071.0,0.00021917,2]
[388826935,1759396252380,-216.536957,0.00021917,2]
[388826936,1759396252390,-216.536957,0.00021917,2]
[388826937,1759396252399,-500.63441543,0.00021917,2]
[388826938,1759396252410,-216.53695,0.00021917,2]
[388826939,1759396252420,-151.0,0.00021917,2]
[388826940,1759396252430,-1551.67,0.00021917,2]
[388826941,1759396252440,-151.0,0.00021917,2]
[388826942,1759396252450,-151.0,0.00021917,2]
[388826943,1759396252459,-695.23,0.00021917,2]
[388826944,1759396252469,-1159.55,0.00021917,2]
[388826945,1759396252478,-151.0,0.00021917,2]
[388826946,1759396252487,-236.830693,0.00021917,2]
[388826947,1759396252497,-501.96416876,0.00021917,2]
[388826948,1759396252506,-797.62,0.00021917,2]
[388826949,1759396252515,-703.63,0.00021917,2]
[388826950,1759396252524,-2241.17,0.00021917,2]
[388826951,1759396252534,-500.75477159,0.00021917,2]
[388826952,1759396252544,-500.0,0.00021917,2]
[388826953,1759396252553,-823.91,0.00021917,2]
[388826954,1759396252562,-645.66520295,0.00021917,2]
[388826955,1759396252571,-500.0,0.00021917,2]
[388826956,1759396252582,-500.0,0.00021917,2]
[388826957,1759396252591,-3025.37,0.00021917,2]
[388826958,1759396252600,-500.0,0.00021917,2]
[388826959,1759396252609,-510.44593538,0.00021917,2]
[388826960,1759396252619,-500.0,0.00021917,2]
[388826961,1759396252630,-170.24,0.00021917,2]
[388826962,1759396252639,-532.39778557,0.00021917,2]
[388826963,1759396252648,-500.0,0.00021917,2]
[388826964,1759396252657,-2343.37,0.00021917,2]
[388826965,1759396252666,-1197.06,0.00021917,2]
[388826966,1759396252676,-1047.98,0.00021917,2]
[388826967,1759396252685,-500.0,0.00021917,2]
[388826968,1759396252695,-756.86,0.00021917,2]
[388826969,1759396252704,-501.63567569,0.00021917,2]
[388826970,1759396252713,-5573.65,0.00021917,2]
[388826971,1759396252722,-394.82063233,0.00021917,2]
[388826972,1759396252731,-500.0,0.00021917,2]
[388826973,1759396252741,-500.0,0.00021917,2]
[388826974,1759396252750,-500.0,0.00021917,2]
[388826975,1759396252759,-500.0,0.00021917,2]
[388826976,1759396252768,-983.78,0.00021917,2]
[388826977,1759396252778,-7013.07,0.00021917,2]
[388826978,1759396252787,-500.0,0.00021917,2]
[388826979,1759396252799,-500.0,0.00021917,2]
[388826980,1759396252811,-4134.33,0.00021917,2]
[388826981,1759396252820,-755.94,0.00021917,2]
[388826982,1759396252829,-5855.23,0.00021917,2]
[388826983,1759396252839,-6658.27,0.00021917,2]
[388826984,1759396252849,-500.0,0.00021917,2]
[388826985,1759396252859,-480.87,0.00021917,2]
[388826986,1759396252870,-500.0,0.00021917,2]
[388826987,1759396252880,-500.0,0.00021917,2]
[388826988,1759396252889,-500.0,0.00021917,2]
[388826989,1759396252898,-1059.66,0.00021917,2]
[388826990,1759396252908,-500.0,0.00021917,2]
[388826991,1759396252917,-500.0,0.00021917,2]
[388826992,1759396252927,-500.0,0.00021917,2]
[388826993,1759396252936,-6183.41,0.00021917,2]
[388826994,1759396252945,-500.0,0.00021917,2]
[388826995,1759396252955,-23230.41,0.00021917,2]
[388826996,1759396252964,-501.98623097,0.00021917,2]
[388826997,1759396252974,-1750.47,0.00021917,2]
[388826998,1759396252983,-2343.9,0.00021917,2]
[388826999,1759396252992,-1690.48,0.00021917,2]
[388827000,1759396253001,-500.0,0.00021917,2]
[388827001,1759396253011,-2705.25,0.00021917,2]
[388827002,1759396253020,-627.43,0.00021917,2]
[388827003,1759396253029,-500.0,0.00021917,2]
[388827004,1759396253040,-500.0,0.00021917,2]
[388827005,1759396253049,-5758.36,0.00021917,2]
[388827006,1759396253059,-500.0,0.00021917,2]
[388827007,1759396253070,-500.0,0.00021917,2]
[388827008,1759396253079,-7637.21,0.00021917,2]
[388827009,1759396253090,-500.0,0.00021917,2]
[388827010,1759396253099,-500.0,0.00021917,2]
[388827011,1759396253109,-1696.57,0.00021917,2]
[388827012,1759396253118,-524.97,0.00021917,2]
[388827013,1759396253128,-657.21,0.00021917,2]
[388827014,1759396253137,-500.0,0.00021917,2]
[388827015,1759396253147,-500.0,0.00021917,2]
[388827016,1759396253157,-500.0,0.00021917,2]
[388827017,1759396253166,-500.0,0.00021917,2]
[388827018,1759396253176,-572.49,0.00021917,2]
[388827019,1759396253186,-501.29439965,0.00021917,2]
[388827020,1759396253196,-500.0,0.00021917,2]
[388827021,1759396253205,-500.0,0.00021917,2]
[388827022,1759396253214,-500.0,0.00021917,2]
[388827023,1759396253224,-151.0,0.00021917,2]
[388827024,1759396253233,-500.0,0.00021917,2]
[388827025,1759396253243,-501.1083077,0.00021917,2]
[388827026,1759396253252,-1904.7,0.00021917,2]
[388827027,1759396253262,-500.0,0.00021917,2]
[388827028,1759396253272,-500.0,0.00021917,2]
[388827029,1759396253282,-2011.23,0.00021917,2]
[388827030,1759396253293,-500.0,0.00021917,2]
[388827031,1759396253302,-500.0,0.00021917,2]
[388827032,1759396253312,-500.0,0.00021917,2]
[388827033,1759396253322,-537.19,0.00021917,2]
[388827034,1759396253332,-602.68,0.00021917,2]
[388827035,1759396253342,-500.0,0.00021917,2]
[388827036,1759396253352,-500.0,0.00021917,2]
[388827037,1759396253362,-5756.01641498,0.00021917,2]
[388827038,1759396253479,-31.03358502,0.00021917,2]
[388827039,1759396253489,-500.0,0.00021917,2]
[388827040,1759396253499,-1755.12,0.00021917,2]
[388827041,1759396253508,-87.64641498,0.00021917,2]
[388827042,1759396253541,-412.35358502,0.00021917,2]
[388827043,1759396253551,-500.0,0.00021917,2]
[388827044,1759396253561,-1694.21,0.00021917,2]
[388827045,1759396253571,-500.0,0.00021917,2]
[388827046,1759396253581,-1905.16,0.00021917,2]
[388827047,1759396253590,-290.82038328,0.00021917,2]
[388827048,1759396254730,-154.21212959,0.00021615,2]
[388827049,1759396254741,-154.21212959,0.00021633,2]
[388827050,1759396254751,-126.33162504,0.00021639,2]
[388827051,1759396254775,-27.88050455,0.00021639,2]
[388827052,1759396254786,-154.21212959,0.00021677,2]
[388827053,1759396254796,-248.93641557,0.00021817,2]
[388827054,1759396254806,-209.17961672,0.00021917,2]
[388827055,1759396254817,-270.89711721,0.00021917,2]
[388827056,1759396254827,-500.0,0.00021917,2]
[388827057,1759396254837,-500.0,0.00021917,2]
[388827058,1759396254847,-500.0,0.00021917,2]
[388827059,1759396254857,-536.77138467,0.00021917,2]
[388827060,1759396254868,-1385.63,0.00021917,2]
[388827061,1759396254878,-5814.28,0.00021917,2]
[388827062,1759396254889,-500.0,0.00021917,2]
[388827063,1759396254901,-2617.86,0.00021917,2]
[388827064,1759396254912,-500.0,0.00021917,2]
[388827065,1759396254924,-500.0,0.00021917,2]
[388827066,1759396254934,-500.0,0.00021917,2]
[388827067,1759396254944,-1479.64,0.00021917,2]
[388827068,1759396254955,-500.0,0.00021917,2]
[388827069,1759396254964,-2060.45,0.00021917,2]
[388827070,1759396254976,-2191.38958965,0.00021917,2]
[388827071,1759396254990,-833.94041035,0.00021917,2]
[388827072,1759396255001,-705.24,0.00021917,2]
[388827073,1759396255012,-1212.93459997,0.00021917,2]
[388827074,1759396255027,-1644.22540003,0.00021917,2]
[388827075,1759396255039,-500.0,0.00021917,2]
[388827076,1759396255049,-3269.1,0.00021917,2]
[388827077,1759396255059,-500.0,0.00021917,2]
[388827078,1759396255069,-1343.41,0.00021917,2]
[388827079,1759396255078,-1343.41,0.00021917,2]
[388827080,1759396255088,-1343.41,0.00021917,2]
[388827081,1759396255098,-445.20726714,0.00021917,2]
[388827082,1759396255110,-898.20273286,0.00021917,2]
[388827083,1759396255124,-3115.98,0.00021917,2]
[388827084,1759396255134,-500.0,0.00021917,2]
[388827085,1759396255144,-1343.41,0.00021917,2]
[388827086,1759396255154,-1343.41,0.00021917,2]
[388827087,1759396255164,-500.0,0.00021917,2]
[388827088,1759396255174,-151.0,0.00021917,2]
[388827089,1759396255184,-566.79,0.00021917,2]
[388827090,1759396255195,-500.0,0.00021917,2]
[388827091,1759396255205,-500.0,0.00021917,2]
[388827092,1759396255215,-501.24726904,0.00021917,2]
[388827093,1759396255225,-500.0,0.00021917,2]
[388827094,1759396255235,-2475.33,0.00021917,2]
[388827095,1759396255246,-1243.32,0.00021917,2]
[388827096,1759396255257,-1588.85,0.00021917,2]
[388827097,1759396255267,-2607.34,0.00021917,2]
[388827098,1759396255279,-160.225118,0.00021917,2]
[388827099,1759396255289,-500.0,0.00021917,2]
[388827100,1759396255300,-160.225118,0.00021917,2]
[388827101,1759396255310,-160.225118,0.00021917,2]
[388827102,1759396255320,-574.49,0.00021917,2]
[388827103,1759396255330,-160.225118,0.00021917,2]
[388827104,1759396255341,-160.225118,0.00021917,2]
[388827105,1759396255351,-160.225118,0.00021917,2]
[388827106,1759396255362,-967.27,0.00021917,2]
[388827107,1759396255376,-160.225118,0.00021917,2]
[388827108,1759396255387,-500.0,0.00021917,2]
[388827109,1759396255397,-160.225118,0.00021917,2]
[388827110,1759396255407,-160.225118,0.00021917,2]
[388827111,1759396255419,-160.225118,0.00021917,2]
[388827112,1759396255430,-500.0,0.00021917,2]
[388827113,1759396255441,-500.58910571,0.00021917,2]
[388827114,1759396255452,-160.225118,0.00021917,2]
[388827115,1759396255463,-500.0,0.00021917,2]
[388827116,1759396255474,-160.225118,0.00021917,2]
[388827117,1759396255484,-500.0,0.00021917,2]
[388827118,1759396255494,-160.225118,0.00021917,2]
[388827119,1759396255505,-1235.66,0.00021917,2]
[388827120,1759396255519,-160.225118,0.00021917,2]
[388827121,1759396255531,-591.28858191,0.00021917,2]
[388827122,1759396255541,-160.225118,0.00021917,2]
[388827123,1759396255552,-501.32828101,0.00021917,2]
[388827124,1759396255562,-160.225118,0.00021917,2]
[388827125,1759396255572,-160.225118,0.00021917,2]
[388827126,1759396255583,-160.225118,0.00021917,2]
[388827127,1759396255593,-160.225118,0.00021917,2]
[388827128,1759396255605,-500.0,0.00021917,2]
[388827129,1759396255615,-160.225117,0.00021917,2]
[388827130,1759396255627,-500.0,0.00021917,2]
[388827131,1759396255637,-211.43934674,0.00021917,2]
[388827132,1759396255652,-8338.33065326,0.00021917,2]
[388827133,1759396255662,-2354.77,0.00021917,2]
[388827134,1759396255672,-500.0,0.00021917,2]
[388827135,1759396255683,-500.89165211,0.00021917,2]
[388827136,1759396255694,-500.0,0.00021917,2]
[388827137,1759396255703,-1501.78,0.00021917,2]
[388827138,1759396255713,-500.0,0.00021917,2]